[Event "Titled Tuesday Blitz February 21 Early 2023"]
[White "Nakamura, Hikaru"]
[Black "Karas, Marek"]
[WhiteFideId "2016192"]
[BlackFideId "14928558"]
[WhiteElo "2775"]
[BlackElo "2227"]
[Result "1-0"]
[Round "01"]
[TimeControl "180+2"]
[Date "2023.02.21"]
[WhiteClock "0:00:56"]
[BlackClock "0:00:02"]

1. Nf3 {[%clk 0:02:55]}  Nf6 {[%clk 0:02:59]} 2. g3 {[%clk 0:02:54]}  d5 {[%clk 0:02:59]} 3. Bg2 {[%clk 0:02:53]}  e6 {[%clk 0:02:58]} 4. d3 {[%clk 0:02:51]}  Be7 {[%clk 0:02:58]} 5. Nbd2 {[%clk 0:02:52]}  O-O {[%clk 0:02:59]} 6. O-O {[%clk 0:02:51]}  c5 {[%clk 0:02:58]} 7. e4 {[%clk 0:02:51]}  Nc6 {[%clk 0:02:58]} 8. Re1 {[%clk 0:02:51]}  b5 {[%clk 0:02:56]} 9. e5 {[%clk 0:02:49]}  Nd7 {[%clk 0:02:56]} 10. Nf1 {[%clk 0:02:50]}  Qc7 {[%clk 0:02:55]} 11. Bf4 {[%clk 0:02:50]}  Bb7 {[%clk 0:02:55]} 12. h4 {[%clk 0:02:49]}  Rfc8 {[%clk 0:02:54]} 13. h5 {[%clk 0:02:50]}  h6 {[%clk 0:02:54]} 14. N1h2 {[%clk 0:02:45]}  Qd8 {[%clk 0:02:49]} 15. c3 {[%clk 0:02:41]}  a5 {[%clk 0:02:49]} 16. Qd2 {[%clk 0:02:39]}  b4 {[%clk 0:02:47]} 17. c4 {[%clk 0:02:40]}  dxc4 {[%clk 0:02:44]} 18. dxc4 {[%clk 0:02:40]}  Nb6 {[%clk 0:02:44]} 19. Qc1 {[%clk 0:02:23]}  Qd3 {[%clk 0:02:31]} 20. Nd2 {[%clk 0:02:08]}  Ra7 {[%clk 0:02:12]} 21. Be4 {[%clk 0:01:51]}  Qd8 {[%clk 0:02:05]} 22. Ndf3 {[%clk 0:01:50]}  Nd4 {[%clk 0:01:59]} 23. Bxh6 {[%clk 0:01:40]}  Nxf3+ {[%clk 0:01:49]} 24. Nxf3 {[%clk 0:01:38]}  Bxe4 {[%clk 0:01:38]} 25. Rxe4 {[%clk 0:01:38]}  Qd3 {[%clk 0:01:16]} 26. Rg4 {[%clk 0:01:33]}  Qxf3 {[%clk 0:01:11]} 27. Rxg7+ {[%clk 0:01:33]}  Kh8 {[%clk 0:01:09]} 28. Qc2 {[%clk 0:01:34]}  Qf5 {[%clk 0:01:05]} 29. Qxf5 {[%clk 0:01:34]}  exf5 {[%clk 0:01:05]} 30. Rxf7 {[%clk 0:01:35]}  Kg8 {[%clk 0:00:53]} 31. e6 {[%clk 0:01:29]}  Rac7 {[%clk 0:00:43]} 32. Bf4 {[%clk 0:01:20]}  Rb7 {[%clk 0:00:20]} 33. h6 {[%clk 0:01:13]}  Nxc4 {[%clk 0:00:18]} 34. b3 {[%clk 0:01:11]}  Bf6 {[%clk 0:00:12]} 35. Rxf6 {[%clk 0:01:06]}  Na3 {[%clk 0:00:07]} 36. Rd1 {[%clk 0:01:02]}  a4 {[%clk 0:00:06]} 37. Rd7 {[%clk 0:00:55]}  Rcc7 {[%clk 0:00:03]} 38. h7+ {[%clk 0:00:55]}  Kh8 {[%clk 0:00:02]} 39. Rf8# {[%clk 0:00:56]} 1-0


[Site "https://www.chess.com"]

[Event "Titled Tuesday Blitz February 21 Early 2023"]
[White "Dubov, Daniil"]
[Black "Mostbauer, Maximilian"]
[WhiteFideId "24126055"]
[BlackFideId "1626680"]
[WhiteElo "2708"]
[BlackElo "2167"]
[Result "1-0"]
[Round "01"]
[TimeControl "180+2"]
[Date "2023.02.21"]
[WhiteClock "0:00:14"]
[BlackClock "0:00:06"]

1. d4 {[%clk 0:02:57]}  e6 {[%clk 0:02:59]} 2. Nf3 {[%clk 0:02:57]}  Nf6 {[%clk 0:02:59]} 3. Bg5 {[%clk 0:02:56]}  Be7 {[%clk 0:02:59]} 4. Nbd2 {[%clk 0:02:54]}  d5 {[%clk 0:02:58]} 5. e3 {[%clk 0:02:54]}  O-O {[%clk 0:02:58]} 6. Bd3 {[%clk 0:02:54]}  b6 {[%clk 0:02:59]} 7. Ne5 {[%clk 0:02:51]}  Bb7 {[%clk 0:02:58]} 8. c3 {[%clk 0:02:50]}  Nbd7 {[%clk 0:02:58]} 9. Qb1 {[%clk 0:02:45]}  h6 {[%clk 0:02:53]} 10. Bf4 {[%clk 0:02:45]}  Nh5 {[%clk 0:02:34]} 11. Nxd7 {[%clk 0:02:27]}  Qxd7 {[%clk 0:02:24]} 12. Be5 {[%clk 0:02:27]}  f6 {[%clk 0:02:25]} 13. Bg3 {[%clk 0:02:25]}  Nxg3 {[%clk 0:02:24]} 14. hxg3 {[%clk 0:02:25]}  f5 {[%clk 0:02:19]} 15. f4 {[%clk 0:02:21]}  Bc6 {[%clk 0:01:44]} 16. Nf3 {[%clk 0:02:14]}  Bf6 {[%clk 0:01:44]} 17. Kf2 {[%clk 0:02:03]}  Bb5 {[%clk 0:01:43]} 18. Qf1 {[%clk 0:01:56]}  Bxd3 {[%clk 0:01:42]} 19. Qxd3 {[%clk 0:01:57]}  c5 {[%clk 0:01:43]} 20. Rae1 {[%clk 0:01:52]}  c4 {[%clk 0:01:43]} 21. Qd1 {[%clk 0:01:48]}  b5 {[%clk 0:01:44]} 22. Ng1 {[%clk 0:01:30]}  b4 {[%clk 0:01:41]} 23. g4 {[%clk 0:01:25]}  bxc3 {[%clk 0:01:22]} 24. bxc3 {[%clk 0:01:25]}  Rab8 {[%clk 0:01:17]} 25. Kg3 {[%clk 0:01:21]}  Rb2 {[%clk 0:01:11]} 26. Re2 {[%clk 0:01:12]}  Rfb8 {[%clk 0:01:09]} 27. Nf3 {[%clk 0:01:12]}  fxg4 {[%clk 0:01:04]} 28. Ne5 {[%clk 0:01:10]}  Bxe5 {[%clk 0:01:04]} 29. dxe5 {[%clk 0:01:11]}  Qf7 {[%clk 0:00:53]} 30. Rxb2 {[%clk 0:00:51]}  Rxb2 {[%clk 0:00:54]} 31. Qxg4 {[%clk 0:00:51]}  Rc2 {[%clk 0:00:31]} 32. Rxh6 {[%clk 0:00:50]}  Rxc3 {[%clk 0:00:30]} 33. Kf2 {[%clk 0:00:45]}  Rc2+ {[%clk 0:00:18]} 34. Kg1 {[%clk 0:00:44]}  Rc1+ {[%clk 0:00:18]} 35. Kh2 {[%clk 0:00:42]}  c3 {[%clk 0:00:11]} 36. Rxe6 {[%clk 0:00:40]}  c2 {[%clk 0:00:04]} 37. Rc6 {[%clk 0:00:40]}  g6 {[%clk 0:00:05]} 38. Qc8+ {[%clk 0:00:25]}  Qf8 {[%clk 0:00:03]} 39. Rxg6+ {[%clk 0:00:22]}  Kh7 {[%clk 0:00:03]} 40. Qxf8 {[%clk 0:00:21]}  Rh1+ {[%clk 0:00:04]} 41. Kg3 {[%clk 0:00:13]}  Kxg6 {[%clk 0:00:04]} 42. Qf6+ {[%clk 0:00:13]}  Kh7 {[%clk 0:00:05]} 43. Qf5+ {[%clk 0:00:14]}  Kh8 {[%clk 0:00:04]} 44. Qxc2 {[%clk 0:00:14]}  Rh7 {[%clk 0:00:04]} 45. Qc8+ {[%clk 0:00:13]}  Kg7 {[%clk 0:00:03]} 46. Kg4 {[%clk 0:00:14]}  Rh6 {[%clk 0:00:04]} 47. Qd7+ {[%clk 0:00:13]}  Kg8 {[%clk 0:00:04]} 48. Kg5 {[%clk 0:00:14]}  Rh7 {[%clk 0:00:05]} 49. Qd8+ {[%clk 0:00:14]}  Kf7 {[%clk 0:00:05]} 50. f5 {[%clk 0:00:14]}  Rg7+ {[%clk 0:00:05]} 51. Kf4 {[%clk 0:00:14]}  Rg8 {[%clk 0:00:06]} 52. Qd7+ {[%clk 0:00:14]}  Kf8 {[%clk 0:00:06]} 53. f6 {[%clk 0:00:15]}  Rg4+ {[%clk 0:00:06]} 54. Kf5 {[%clk 0:00:15]}  Rg5+ {[%clk 0:00:06]} 55. Ke6 {[%clk 0:00:14]}  Rxe5+ {[%clk 0:00:06]} 56. Kxe5 {[%clk 0:00:14]} 1-0


[Site "https://www.chess.com"]

[Event "Titled Tuesday Blitz February 21 Early 2023"]
[White "Pranav, V"]
[Black "Reprintsev, Alexander"]
[WhiteFideId "25060783"]
[BlackFideId "14100541"]
[WhiteElo "2597"]
[BlackElo "2253"]
[Result "1-0"]
[Round "01"]
[TimeControl "180+2"]
[Date "2023.02.21"]
[WhiteClock "0:01:17"]
[BlackClock "0:01:01"]

1. Nf3 {[%clk 0:02:55]}  d5 {[%clk 0:02:59]} 2. g3 {[%clk 0:02:55]}  Nc6 {[%clk 0:02:57]} 3. Bg2 {[%clk 0:02:56]}  e5 {[%clk 0:02:57]} 4. d3 {[%clk 0:02:57]}  Be7 {[%clk 0:02:41]} 5. O-O {[%clk 0:02:56]}  Be6 {[%clk 0:02:41]} 6. Nbd2 {[%clk 0:02:54]}  f5 {[%clk 0:02:21]} 7. e4 {[%clk 0:02:47]}  Nf6 {[%clk 0:02:19]} 8. exd5 {[%clk 0:02:44]}  Bxd5 {[%clk 0:02:18]} 9. Re1 {[%clk 0:02:43]}  Bd6 {[%clk 0:02:08]} 10. c4 {[%clk 0:02:30]}  Bf7 {[%clk 0:02:04]} 11. Nb3 {[%clk 0:02:11]}  e4 {[%clk 0:01:57]} 12. dxe4 {[%clk 0:02:07]}  Bb4 {[%clk 0:01:57]} 13. Bd2 {[%clk 0:01:54]}  fxe4 {[%clk 0:01:54]} 14. Ng5 {[%clk 0:01:45]}  O-O {[%clk 0:01:51]} 15. Nxe4 {[%clk 0:01:41]}  Bxc4 {[%clk 0:01:37]} 16. Nec5 {[%clk 0:01:27]}  Bxd2 {[%clk 0:01:32]} 17. Nxd2 {[%clk 0:01:28]}  Bd5 {[%clk 0:01:31]} 18. Nxb7 {[%clk 0:01:24]}  Qb8 {[%clk 0:01:30]} 19. Bxd5+ {[%clk 0:01:22]}  Nxd5 {[%clk 0:01:30]} 20. Qb3 {[%clk 0:01:23]}  Nb4 {[%clk 0:01:25]} 21. Nc5 {[%clk 0:01:22]}  Qb5 {[%clk 0:01:11]} 22. Ne6 {[%clk 0:01:19]}  Rfb8 {[%clk 0:01:01]} 23. Nxc7 {[%clk 0:01:17]} 1-0


[Site "https://www.chess.com"]

[Event "Titled Tuesday Blitz February 21 Early 2023"]
[White "Zochowski, Kacper"]
[Black "Sarana, Alexey"]
[WhiteFideId "1125494"]
[BlackFideId "24133795"]
[WhiteElo "2262"]
[BlackElo "2685"]
[Result "0-1"]
[Round "01"]
[TimeControl "180+2"]
[Date "2023.02.21"]
[WhiteClock "0:01:38"]
[BlackClock "0:01:57"]

1. Nf3 {[%clk 0:02:55]}  d5 {[%clk 0:02:46]} 2. c4 {[%clk 0:02:54]}  d4 {[%clk 0:02:45]} 3. e3 {[%clk 0:02:41]}  Nc6 {[%clk 0:02:44]} 4. exd4 {[%clk 0:02:40]}  Nxd4 {[%clk 0:02:45]} 5. Nxd4 {[%clk 0:02:40]}  Qxd4 {[%clk 0:02:46]} 6. d3 {[%clk 0:02:41]}  Nh6 {[%clk 0:02:46]} 7. Nc3 {[%clk 0:02:38]}  Nf5 {[%clk 0:02:45]} 8. Be2 {[%clk 0:02:19]}  c6 {[%clk 0:02:42]} 9. g4 {[%clk 0:02:18]}  Nh4 {[%clk 0:02:41]} 10. Be3 {[%clk 0:02:18]}  Ng2+ {[%clk 0:02:40]} 11. Kd2 {[%clk 0:02:17]}  Nxe3 {[%clk 0:02:40]} 12. fxe3 {[%clk 0:02:18]}  Qd6 {[%clk 0:02:38]} 13. Kc2 {[%clk 0:02:05]}  g6 {[%clk 0:02:38]} 14. Qf1 {[%clk 0:01:58]}  Bg7 {[%clk 0:02:38]} 15. Rd1 {[%clk 0:01:58]}  Be6 {[%clk 0:02:37]} 16. Qf4 {[%clk 0:01:53]}  Qb4 {[%clk 0:02:26]} 17. a3 {[%clk 0:01:48]}  Qa5 {[%clk 0:02:26]} 18. d4 {[%clk 0:01:46]}  Rd8 {[%clk 0:02:15]} 19. h4 {[%clk 0:01:38]}  h5 {[%clk 0:01:57]} 0-1


[Site "https://www.chess.com"]

[Event "Titled Tuesday Blitz February 21 Early 2023"]
[White "Le, Tuan Minh"]
[Black "Taboas Rodriguez, Daniel"]
[WhiteFideId "12401153"]
[BlackFideId "2208466"]
[WhiteElo "2542"]
[BlackElo "2371"]
[Result "1-0"]
[Round "01"]
[TimeControl "180+2"]
[Date "2023.02.21"]
[WhiteClock "0:02:11"]
[BlackClock "0:02:37"]

1. d4 {[%clk 0:03:00]}  Nf6 {[%clk 0:02:59]} 2. Nf3 {[%clk 0:03:00]}  g6 {[%clk 0:02:59]} 3. Bg5 {[%clk 0:03:00]}  Bg7 {[%clk 0:03:00]} 4. c3 {[%clk 0:03:01]}  O-O {[%clk 0:02:57]} 5. Nbd2 {[%clk 0:03:01]}  b6 {[%clk 0:02:57]} 6. e4 {[%clk 0:03:01]}  Bb7 {[%clk 0:02:58]} 7. Bd3 {[%clk 0:02:57]}  c5 {[%clk 0:02:57]} 8. O-O {[%clk 0:02:52]}  cxd4 {[%clk 0:02:52]} 9. cxd4 {[%clk 0:02:53]}  Nc6 {[%clk 0:02:52]} 10. a3 {[%clk 0:02:44]}  Rc8 {[%clk 0:02:45]} 11. Qe2 {[%clk 0:02:34]}  h6 {[%clk 0:02:38]} 12. Bh4 {[%clk 0:02:18]}  g5 {[%clk 0:02:37]} 13. e5 {[%clk 0:02:11]} 1-0


[Site "https://www.chess.com"]

[Event "Titled Tuesday Blitz February 21 Early 2023"]
[White "Hakobyan, Aram"]
[Black "Perera Alfonso, Rene Humberto"]
[WhiteFideId "13306677"]
[BlackFideId "3514722"]
[WhiteElo "2608"]
[BlackElo "2320"]
[Result "1-0"]
[Round "01"]
[TimeControl "180+2"]
[Date "2023.02.21"]
[WhiteClock "0:02:09"]
[BlackClock "0:00:13"]

1. e4 {[%clk 0:02:59]}  c5 {[%clk 0:02:59]} 2. Nf3 {[%clk 0:02:59]}  d6 {[%clk 0:02:59]} 3. Bb5+ {[%clk 0:02:57]}  Bd7 {[%clk 0:02:58]} 4. c4 {[%clk 0:02:55]}  g6 {[%clk 0:02:58]} 5. d4 {[%clk 0:02:53]}  cxd4 {[%clk 0:02:57]} 6. Qxd4 {[%clk 0:02:53]}  Nf6 {[%clk 0:02:56]} 7. Nc3 {[%clk 0:02:54]}  Nc6 {[%clk 0:02:55]} 8. Bxc6 {[%clk 0:02:51]}  Bxc6 {[%clk 0:02:55]} 9. O-O {[%clk 0:02:48]}  Bg7 {[%clk 0:02:53]} 10. Be3 {[%clk 0:02:46]}  O-O {[%clk 0:02:53]} 11. Qd3 {[%clk 0:02:47]}  a6 {[%clk 0:02:50]} 12. Nd4 {[%clk 0:02:44]}  Bd7 {[%clk 0:02:49]} 13. f3 {[%clk 0:02:43]}  Rc8 {[%clk 0:02:48]} 14. Rac1 {[%clk 0:02:43]}  Qa5 {[%clk 0:02:47]} 15. Nb3 {[%clk 0:02:43]}  Qc7 {[%clk 0:02:45]} 16. Nd2 {[%clk 0:02:21]}  Rfd8 {[%clk 0:02:40]} 17. b3 {[%clk 0:02:21]}  e6 {[%clk 0:02:40]} 18. Bd4 {[%clk 0:02:17]}  Bc6 {[%clk 0:02:39]} 19. Qe3 {[%clk 0:02:16]}  Nd7 {[%clk 0:02:34]} 20. Bxg7 {[%clk 0:02:16]}  Kxg7 {[%clk 0:02:34]} 21. Rfd1 {[%clk 0:02:16]}  Nc5 {[%clk 0:02:33]} 22. Nf1 {[%clk 0:02:17]}  e5 {[%clk 0:02:32]} 23. Qf2 {[%clk 0:02:11]}  Ne6 {[%clk 0:02:32]} 24. Ne3 {[%clk 0:02:12]}  Qb6 {[%clk 0:00:13]} 25. Nf5+ {[%clk 0:02:09]} 1-0


[Site "https://www.chess.com"]

[Event "Titled Tuesday Blitz February 21 Early 2023"]
[White "Omelja, Artem"]
[Black "Fedoseev, Vladimir"]
[WhiteFideId "14119846"]
[BlackFideId "24130737"]
[WhiteElo "2446"]
[BlackElo "2680"]
[Result "0-1"]
[Round "01"]
[TimeControl "180+2"]
[Date "2023.02.21"]
[WhiteClock "0:00:01"]
[BlackClock "0:01:26"]

1. d4 {[%clk 0:02:54]}  Nf6 {[%clk 0:02:58]} 2. c4 {[%clk 0:02:54]}  e6 {[%clk 0:02:59]} 3. Nf3 {[%clk 0:02:53]}  d5 {[%clk 0:02:57]} 4. Nc3 {[%clk 0:02:52]}  c6 {[%clk 0:02:58]} 5. Bg5 {[%clk 0:02:49]}  h6 {[%clk 0:02:57]} 6. Bh4 {[%clk 0:02:49]}  Be7 {[%clk 0:02:57]} 7. e3 {[%clk 0:02:49]}  Nbd7 {[%clk 0:02:58]} 8. Qc2 {[%clk 0:02:49]}  O-O {[%clk 0:02:57]} 9. Bd3 {[%clk 0:02:49]}  dxc4 {[%clk 0:02:56]} 10. Bxc4 {[%clk 0:02:50]}  b5 {[%clk 0:02:56]} 11. Bd3 {[%clk 0:02:47]}  Bb7 {[%clk 0:02:57]} 12. O-O {[%clk 0:02:46]}  Rc8 {[%clk 0:02:56]} 13. Rfd1 {[%clk 0:02:42]}  Qb6 {[%clk 0:02:54]} 14. Ne5 {[%clk 0:02:12]}  Rfd8 {[%clk 0:02:43]} 15. Bh7+ {[%clk 0:01:13]}  Kf8 {[%clk 0:02:40]} 16. Nxd7+ {[%clk 0:01:08]}  Nxd7 {[%clk 0:02:34]} 17. Bxe7+ {[%clk 0:01:08]}  Kxe7 {[%clk 0:02:35]} 18. Be4 {[%clk 0:01:06]}  c5 {[%clk 0:02:27]} 19. Bxb7 {[%clk 0:01:07]}  Qxb7 {[%clk 0:02:26]} 20. dxc5 {[%clk 0:01:03]}  Rxc5 {[%clk 0:02:17]} 21. Qd3 {[%clk 0:00:37]}  b4 {[%clk 0:02:14]} 22. Qd6+ {[%clk 0:00:23]}  Ke8 {[%clk 0:02:14]} 23. Ne2 {[%clk 0:00:20]}  Qb6 {[%clk 0:02:11]} 24. Qd4 {[%clk 0:00:16]}  Nf6 {[%clk 0:02:09]} 25. Qf4 {[%clk 0:00:07]}  Rxd1+ {[%clk 0:02:01]} 26. Rxd1 {[%clk 0:00:08]}  a5 {[%clk 0:01:59]} 27. Nd4 {[%clk 0:00:05]}  e5 {[%clk 0:01:54]} 28. Qg3 {[%clk 0:00:05]}  exd4 {[%clk 0:01:54]} 29. Qxg7 {[%clk 0:00:06]}  dxe3 {[%clk 0:01:48]} 30. fxe3 {[%clk 0:00:04]}  Re5 {[%clk 0:01:39]} 31. Kh1 {[%clk 0:00:01]}  Ke7 {[%clk 0:01:37]} 32. Qh8 {[%clk 0:00:01]}  Rd5 {[%clk 0:01:35]} 33. Rf1 {[%clk 0:00:01]}  Qd6 {[%clk 0:01:29]} 34. Qxh6 {[%clk 0:00:01]}  Rh5 {[%clk 0:01:26]} 0-1


[Site "https://www.chess.com"]

[Event "Titled Tuesday Blitz February 21 Early 2023"]
[White "Bluebaum, Matthias"]
[Black "Bews, Steven"]
[WhiteFideId "24651516"]
[BlackFideId "2400529"]
[WhiteElo "2669"]
[BlackElo "2295"]
[Result "0-1"]
[Round "01"]
[TimeControl "180+2"]
[Date "2023.02.21"]
[WhiteClock "0:00:03"]
[BlackClock "0:00:21"]

1. d4 {[%clk 0:03:00]}  Nf6 {[%clk 0:02:58]} 2. c4 {[%clk 0:03:01]}  e6 {[%clk 0:02:58]} 3. Nc3 {[%clk 0:03:01]}  Bb4 {[%clk 0:02:57]} 4. e3 {[%clk 0:03:01]}  O-O {[%clk 0:02:54]} 5. Bd2 {[%clk 0:03:02]}  d5 {[%clk 0:02:53]} 6. Nf3 {[%clk 0:03:02]}  Re8 {[%clk 0:02:49]} 7. Rc1 {[%clk 0:03:02]}  Bxc3 {[%clk 0:02:42]} 8. Bxc3 {[%clk 0:03:03]}  Ne4 {[%clk 0:02:42]} 9. Bd3 {[%clk 0:03:01]}  Nxc3 {[%clk 0:02:42]} 10. Rxc3 {[%clk 0:03:02]}  c6 {[%clk 0:02:40]} 11. O-O {[%clk 0:02:59]}  Nd7 {[%clk 0:02:40]} 12. e4 {[%clk 0:02:59]}  dxe4 {[%clk 0:02:40]} 13. Bxe4 {[%clk 0:03:00]}  c5 {[%clk 0:02:32]} 14. Bc2 {[%clk 0:02:51]}  cxd4 {[%clk 0:02:30]} 15. Qxd4 {[%clk 0:02:50]}  Nf6 {[%clk 0:02:24]} 16. Qh4 {[%clk 0:02:50]}  Bd7 {[%clk 0:02:18]} 17. Rd1 {[%clk 0:02:47]}  Qc7 {[%clk 0:02:16]} 18. Nd4 {[%clk 0:02:17]}  h6 {[%clk 0:01:59]} 19. Qg3 {[%clk 0:01:37]}  Qxg3 {[%clk 0:01:58]} 20. hxg3 {[%clk 0:01:37]}  Kf8 {[%clk 0:01:53]} 21. b4 {[%clk 0:01:32]}  Rac8 {[%clk 0:01:49]} 22. Bb3 {[%clk 0:01:32]}  Nd5 {[%clk 0:01:45]} 23. Rcc1 {[%clk 0:01:07]}  Nxb4 {[%clk 0:01:45]} 24. Nf5 {[%clk 0:01:06]}  exf5 {[%clk 0:01:41]} 25. Rxd7 {[%clk 0:01:06]}  Re7 {[%clk 0:01:41]} 26. Rd4 {[%clk 0:01:04]}  Na6 {[%clk 0:01:37]} 27. Rd5 {[%clk 0:00:58]}  g6 {[%clk 0:01:36]} 28. c5 {[%clk 0:00:33]}  Rec7 {[%clk 0:01:33]} 29. c6 {[%clk 0:00:34]}  Rxc6 {[%clk 0:01:28]} 30. Rxc6 {[%clk 0:00:34]}  Rxc6 {[%clk 0:01:28]} 31. Rd8+ {[%clk 0:00:35]}  Kg7 {[%clk 0:01:26]} 32. Ra8 {[%clk 0:00:35]}  Nc5 {[%clk 0:01:22]} 33. Rxa7 {[%clk 0:00:34]}  Nxb3 {[%clk 0:01:21]} 34. axb3 {[%clk 0:00:35]}  Rb6 {[%clk 0:01:22]} 35. Ra3 {[%clk 0:00:36]}  Kf6 {[%clk 0:01:22]} 36. Kf1 {[%clk 0:00:26]}  Ke5 {[%clk 0:01:22]} 37. Ke2 {[%clk 0:00:27]}  Kd4 {[%clk 0:01:16]} 38. Kd2 {[%clk 0:00:27]}  Kc5 {[%clk 0:01:13]} 39. Kc3 {[%clk 0:00:27]}  Rc6 {[%clk 0:01:08]} 40. b4+ {[%clk 0:00:08]}  Kd6+ {[%clk 0:01:00]} 41. Kd4 {[%clk 0:00:08]}  b5 {[%clk 0:00:55]} 42. Ra5 {[%clk 0:00:07]}  Rc4+ {[%clk 0:00:54]} 43. Kd3 {[%clk 0:00:08]}  Rxb4 {[%clk 0:00:55]} 44. Ra7 {[%clk 0:00:09]}  Ke6 {[%clk 0:00:55]} 45. Ra6+ {[%clk 0:00:09]}  Ke7 {[%clk 0:00:55]} 46. Ra7+ {[%clk 0:00:09]}  Kf6 {[%clk 0:00:56]} 47. Rb7 {[%clk 0:00:09]}  Rb2 {[%clk 0:00:55]} 48. Ke3 {[%clk 0:00:10]}  b4 {[%clk 0:00:54]} 49. Rb6+ {[%clk 0:00:10]}  Kg5 {[%clk 0:00:53]} 50. Kf3 {[%clk 0:00:10]}  b3 {[%clk 0:00:51]} 51. Rb7 {[%clk 0:00:11]}  Kf6 {[%clk 0:00:47]} 52. Rb6+ {[%clk 0:00:11]}  Kg7 {[%clk 0:00:47]} 53. Rb7 {[%clk 0:00:12]}  Rb1 {[%clk 0:00:46]} 54. Rb6 {[%clk 0:00:13]}  b2 {[%clk 0:00:45]} 55. Kf4 {[%clk 0:00:13]}  Kf8 {[%clk 0:00:43]} 56. Rb7 {[%clk 0:00:13]}  Ke8 {[%clk 0:00:43]} 57. Kf3 {[%clk 0:00:14]}  Kd8 {[%clk 0:00:43]} 58. Rb3 {[%clk 0:00:11]}  Kc7 {[%clk 0:00:43]} 59. Rb4 {[%clk 0:00:11]}  Kc6 {[%clk 0:00:44]} 60. Rb8 {[%clk 0:00:12]}  Kc5 {[%clk 0:00:43]} 61. Rb7 {[%clk 0:00:11]}  Kc4 {[%clk 0:00:43]} 62. Rb8 {[%clk 0:00:11]}  Kc3 {[%clk 0:00:43]} 63. Rc8+ {[%clk 0:00:12]}  Kd2 {[%clk 0:00:43]} 64. Rd8+ {[%clk 0:00:12]}  Ke1 {[%clk 0:00:44]} 65. Rb8 {[%clk 0:00:12]}  Kf1 {[%clk 0:00:44]} 66. Rb7 {[%clk 0:00:10]}  Kg1 {[%clk 0:00:44]} 67. Rb6 {[%clk 0:00:10]}  g5 {[%clk 0:00:42]} 68. Rb3 {[%clk 0:00:05]}  h5 {[%clk 0:00:38]} 69. Rb5 {[%clk 0:00:05]}  g4+ {[%clk 0:00:35]} 70. Kf4 {[%clk 0:00:03]}  Kxf2 {[%clk 0:00:32]} 71. Rb3 {[%clk 0:00:03]}  Kxg2 {[%clk 0:00:31]} 72. Kg5 {[%clk 0:00:03]}  Rf1 {[%clk 0:00:28]} 73. Rxb2+ {[%clk 0:00:03]}  Kxg3 {[%clk 0:00:28]} 74. Kxh5 {[%clk 0:00:04]}  f4 {[%clk 0:00:28]} 75. Kg5 {[%clk 0:00:05]}  Rd1 {[%clk 0:00:24]} 76. Rb5 {[%clk 0:00:03]}  f3 {[%clk 0:00:22]} 77. Rf5 {[%clk 0:00:02]}  f2 {[%clk 0:00:22]} 78. Kh6 {[%clk 0:00:02]}  f1=Q {[%clk 0:00:23]} 79. Rxf7 {[%clk 0:00:01]}  Qxf7 {[%clk 0:00:21]} 80. Kg5 {[%clk 0:00:02]}  Rd5+ {[%clk 0:00:21]} 81. Kh6 {[%clk 0:00:03]}  Rh5# {[%clk 0:00:21]} 0-1


[Site "https://www.chess.com"]

[Event "Titled Tuesday Blitz February 21 Early 2023"]
[White "Kuzmin, Roman"]
[Black "Deac, Bogdan-Daniel"]
[WhiteFideId "44134932"]
[BlackFideId "1226380"]
[WhiteElo "2198"]
[BlackElo "2700"]
[Result "0-1"]
[Round "01"]
[TimeControl "180+2"]
[Date "2023.02.21"]
[WhiteClock "0:00:04"]
[BlackClock "0:00:05"]

1. e4 {[%clk 0:02:59]}  g6 {[%clk 0:02:58]} 2. d4 {[%clk 0:02:59]}  Bg7 {[%clk 0:02:56]} 3. Nc3 {[%clk 0:02:59]}  Nc6 {[%clk 0:02:56]} 4. Nf3 {[%clk 0:02:49]}  d6 {[%clk 0:02:55]} 5. d5 {[%clk 0:02:44]}  Nb8 {[%clk 0:02:53]} 6. Be3 {[%clk 0:02:42]}  c6 {[%clk 0:02:49]} 7. Qd2 {[%clk 0:02:36]}  Qa5 {[%clk 0:02:42]} 8. a3 {[%clk 0:02:28]}  Nf6 {[%clk 0:02:36]} 9. h3 {[%clk 0:02:19]}  Nbd7 {[%clk 0:02:28]} 10. Be2 {[%clk 0:02:14]}  O-O {[%clk 0:02:21]} 11. O-O {[%clk 0:02:13]}  Qc7 {[%clk 0:02:17]} 12. Nd4 {[%clk 0:02:04]}  a6 {[%clk 0:02:10]} 13. f4 {[%clk 0:01:59]}  cxd5 {[%clk 0:02:08]} 14. exd5 {[%clk 0:01:57]}  Nb6 {[%clk 0:02:06]} 15. Nb3 {[%clk 0:01:36]}  Bd7 {[%clk 0:01:48]} 16. Na5 {[%clk 0:01:30]}  Rac8 {[%clk 0:01:30]} 17. Bf3 {[%clk 0:01:19]}  Na4 {[%clk 0:01:22]} 18. Nxa4 {[%clk 0:01:15]}  Bxa4 {[%clk 0:01:23]} 19. b3 {[%clk 0:01:09]}  Bd7 {[%clk 0:01:08]} 20. Rac1 {[%clk 0:01:01]}  b6 {[%clk 0:00:53]} 21. Nc4 {[%clk 0:01:00]}  b5 {[%clk 0:00:54]} 22. Nb6 {[%clk 0:00:58]}  Rb8 {[%clk 0:00:54]} 23. Nxd7 {[%clk 0:00:58]}  Qxd7 {[%clk 0:00:55]} 24. Kh2 {[%clk 0:00:50]}  Rfc8 {[%clk 0:00:54]} 25. c4 {[%clk 0:00:50]}  bxc4 {[%clk 0:00:49]} 26. bxc4 {[%clk 0:00:51]}  Qd8 {[%clk 0:00:23]} 27. c5 {[%clk 0:00:51]}  dxc5 {[%clk 0:00:22]} 28. Rxc5 {[%clk 0:00:47]}  Rxc5 {[%clk 0:00:20]} 29. Bxc5 {[%clk 0:00:46]}  Ne8 {[%clk 0:00:20]} 30. Qe2 {[%clk 0:00:44]}  Nd6 {[%clk 0:00:18]} 31. Qxa6 {[%clk 0:00:44]}  Ra8 {[%clk 0:00:18]} 32. Qd3 {[%clk 0:00:44]}  Qc7 {[%clk 0:00:17]} 33. Be3 {[%clk 0:00:39]}  Qa5 {[%clk 0:00:14]} 34. Bc1 {[%clk 0:00:33]}  Bf6 {[%clk 0:00:14]} 35. Rd1 {[%clk 0:00:29]}  Rc8 {[%clk 0:00:13]} 36. Bd2 {[%clk 0:00:28]}  Bc3 {[%clk 0:00:10]} 37. Bc1 {[%clk 0:00:24]}  Qa4 {[%clk 0:00:09]} 38. g3 {[%clk 0:00:19]}  Bf6 {[%clk 0:00:08]} 39. Bg2 {[%clk 0:00:16]}  Rc3 {[%clk 0:00:07]} 40. Qe2 {[%clk 0:00:09]}  Qb3 {[%clk 0:00:07]} 41. Qf2 {[%clk 0:00:05]}  Qxd1 {[%clk 0:00:05]} 42. Bb2 {[%clk 0:00:04]}  Rc2 {[%clk 0:00:05]} 0-1


[Site "https://www.chess.com"]